bitfinex-derivatives/quotes_ETHF0:USTF0_20250621
["timestamp","ask_amount","ask_price","bid_price","bid_amount"]
[1750544953758,0.8923,2304.7,2304.1,2.3057]
[1750544953948,2.2437,2304.7,2304.1,2.3057]
[1750544954149,0.8923,2304.7,2304.2,10.92386126]
[1750544954350,0.8923,2304.7,2304.3,1.4575]
[1750544954754,0.8923,2304.7,2303.9,4.1348]
[1750544954957,2.2373,2304.6,2303.9,4.1348]
[1750544955258,2.2373,2304.6,2303.9,5.5923]
[1750544955964,2.2373,2304.6,2304.0,0.2462]
[1750544956755,3.2078,2304.5,2304.0,0.2462]
[1750544956955,37.3763,2304.4,2304.0,0.2462]
[1750544957750,37.3763,2304.4,2303.4,1.51417599]
[1750544957751,3.2078,2304.2,2303.4,1.51417599]
[1750544957952,3.2078,2303.6,2302.9,3.2078]
[1750544958257,3.2078,2303.3,2302.9,4.6535]
[1750544958557,36.027,2303.2,2302.9,3.2078]
[1750544959156,37.4254,2303.2,2302.9,3.2078]
[1750544960461,37.4254,2303.2,2302.6,3.2078]
[1750544962958,37.4254,2303.2,2302.5,1.4057]
[1750544962959,3.2078,2303.0,2302.5,1.4057]
[1750544963152,28.182,2302.9,2302.5,4.6135]
[1750544963346,7.853,2302.8,2302.3,7.71606126]
[1750544963548,7.853,2302.8,2302.3,9.09886126]
[1750544963756,10.1576,2302.8,2302.3,9.09886126]
[1750544964249,11.0948,2302.8,2302.4,3.2078]
[1750544964755,9.6555,2302.8,2302.4,4.5906]
[1750544964950,5.896,2302.7,2302.4,3.2078]
[1750544965162,7.3353,2302.7,2302.2,3.2078]
[1750544965362,36.039,2302.6,2302.1,3.2078]
[1750544965555,36.039,2302.6,2302.2,1.3828]
[1750544965757,36.039,2302.6,2301.7,12.70836126]
[1750544965956,4.6471,2302.5,2302.0,3.2078]
[1750544966160,3.2078,2302.5,2302.0,10.92386126]
[1750544966357,36.037,2302.4,2302.1,1.4002]
[1750544967460,36.037,2302.3,2302.1,1.4002]
[1750544967665,36.037,2302.3,2302.0,3.2078]
[1750544968858,3.2078,2302.5,2302.1,1.4002]
[1750544969055,28.186,2302.4,2302.1,1.4002]
[1750544969762,28.186,2302.4,2302.0,3.2078]
[1750544969956,28.186,2302.4,2301.8,1.4402]
[1750544969957,3.2078,2302.2,2301.8,1.4402]
[1750544970157,36.04,2302.1,2301.8,1.4402]
[1750544970968,36.04,2302.1,2301.7,3.2078]
[1750544971171,0.9224,2302.0,2301.7,3.2078]
[1750544971367,3.2698,2302.0,2301.7,3.2078]
[1750544971767,3.2698,2302.0,2301.4,4.648]
[1750544972165,1.814,2302.0,2301.7,3.2078]
[1750544972365,1.814,2302.0,2301.8,1.4402]
[1750544972366,28.184,2301.9,2301.8,1.4402]
[1750544972972,28.184,2301.9,2301.4,4.6295]
[1750544973871,3.2078,2302.7,2301.8,3.2078]
[1750544974066,9.7563,2303.1,2302.2,10.92386126]
[1750544974367,28.185,2303.0,2302.2,10.92386126]
[1750544974570,29.5537,2303.0,2302.3,1.4217]
[1750544975377,36.042,2302.9,2302.5,10.92386126]
[1750544975572,1.8983,2303.1,2302.6,1.4374]
[1750544975774,36.042,2303.0,2302.6,1.4374]
[1750544977274,1.8983,2303.1,2302.6,1.4374]
[1750544977669,36.04,2303.0,2302.6,1.4374]
[1750544977870,36.04,2303.0,2302.8,3.2078]
[1750544978070,28.182,2303.1,2302.9,1.4374]
[1750544978976,7.858,2303.2,2302.9,1.4374]
[1750544980475,7.858,2303.2,2303.0,3.2078]
[1750544980777,28.18,2303.4,2303.1,1.4126]
[1750544981479,28.179,2303.4,2303.1,1.4126]
[1750544984173,50.016,2303.6,2303.1,1.4126]
[1750544984372,50.016,2303.6,2303.3,3.2078]
[1750544984574,28.176,2303.5,2303.4,1.4339]
[1750544984776,10.7073,2304.0,2303.4,1.4339]
[1750544984980,7.837,2303.7,2303.4,1.4339]
[1750544985582,28.175,2303.6,2303.4,1.4339]
[1750544986677,28.175,2303.6,2302.9,4.1216]
[1750544986878,31.3828,2303.6,2303.2,1.3291]
[1750544987070,28.175,2303.6,2303.2,1.3291]
[1750544987274,28.175,2303.6,2303.3,3.2078]
[1750544987478,28.175,2303.6,2303.4,1.3291]
[1750544987682,34.071,2303.6,2303.4,1.3291]
[1750544988877,28.17,2303.5,2303.4,1.3291]
[1750544989185,5.896,2303.6,2303.4,1.3291]
[1750544989483,5.896,2303.6,2303.4,9.93026126]
[1750544989678,7.71606126,2304.7,2303.4,9.93026126]
[1750544989679,28.168,2304.1,2303.4,22.76626126]
[1750544989976,28.168,2304.1,2303.8,3.2078]
[1750544990182,28.168,2304.1,2303.5,3.2078]
[1750544990375,3.2078,2303.9,2303.4,0.06847599]
[1750544990679,29.47107417,2303.8,2303.4,0.06847599]
[1750544990877,7.20007417,2303.7,2303.4,0.06847599]
[1750544991075,8.2047,2303.7,2303.4,0.06847599]
[1750544991976,5.896,2303.6,2303.5,1.5062]
[1750544993583,3.2078,2303.6,2303.5,1.5062]
[1750544993777,11.79961894,2303.6,2302.7,0.44001822]
[1750544994079,3.2078,2303.3,2302.5,10.92386126]
[1750544994283,28.16,2303.2,2302.8,3.2078]
[1750544994482,28.16,2303.2,2302.9,1.3671]
[1750544995381,28.16,2303.2,2302.8,3.2078]
[1750544995584,0.8947,2303.1,2302.8,3.2078]
[1750544996083,0.8947,2303.1,2302.5,9.08316126]
[1750544996878,2.3366,2303.1,2302.5,1.3671]
[1750544997881,2.3366,2303.1,2302.7,3.2078]
[1750544998689,0.8947,2303.1,2302.7,3.2078]
[1750544998981,5.896,2303.1,2302.8,9.09636126]
[1750544999773,5.896,2303.1,2303.0,3.2078]
[1750545000583,9.1038,2303.1,2302.5,3.2078]
[1750545000785,3.2242,2303.0,2302.5,3.2078]
[1750545000978,41.884,2302.9,2302.5,4.5851]
[1750545001580,41.884,2302.9,2302.4,0.888]
[1750545001581,3.2078,2302.8,2302.2,3.2078]
[1750545001778,5.896,2302.7,2302.2,3.2078]
[1750545002079,28.151,2302.6,2302.2,3.2078]
[1750545002277,11.0428,2302.5,2302.0,1.3773]
[1750545002472,1.4151,2302.4,2302.0,1.3773]
[1750545002674,28.151,2302.3,2302.0,1.3773]
[1750545003484,4.0872,2302.5,2302.0,1.3773]
[1750545003678,8.7154,2302.5,2302.4,3.2078]
[1750545003881,3.2078,2303.0,2302.4,11.0438]
[1750545004189,2.56567639,2303.6,2302.9,10.92386126]
[1750545004190,3.2078,2303.6,2302.9,10.92386126]
[1750545004385,3.2078,2303.6,2303.0,18.77036126]
[1750545004576,28.151,2303.5,2303.0,3.2183]
[1750545004779,3.2078,2303.3,2302.6,3.2078]
[1750545004979,3.2078,2303.3,2302.6,4.5606]
[1750545005176,28.151,2303.2,2302.6,4.5606]
[1750545005485,28.151,2303.2,2302.7,7.71606126]
[1750545005685,28.151,2303.2,2302.9,3.2078]
[1750545006585,28.151,2303.2,2302.5,3.27627599]
[1750545006787,2.75484782,2303.1,2302.5,4.71347599]
[1750545006984,1.4437,2303.1,2302.5,4.71347599]
[1750545007191,0.9616,2303.0,2302.5,4.71347599]
[1750545008591,4.1694,2303.0,2302.5,0.06847599]
[1750545008888,1.4437,2302.9,2302.5,0.06847599]
[1750545009091,36.873,2302.8,2302.5,0.06847599]
[1750545010892,1.3825,2302.7,2302.5,0.06847599]
[1750545012981,15.4863,2302.7,2301.6,3.2078]
[1750545013184,3.2078,2302.4,2301.6,3.2078]
[1750545013379,38.3504,2302.3,2301.7,1.4259]
[1750545013590,3.2078,2302.1,2301.3,4.983]
[1750545013790,29.6132,2302.0,2301.4,1.4259]
[1750545013994,7.837,2301.9,2301.4,1.4259]
[1750545014291,9.3072,2301.9,2301.4,1.4259]
[1750545014479,0.932,2301.8,2301.4,1.4259]
[1750545014788,0.932,2301.8,2301.6,3.2078]
[1750545014989,0.932,2301.8,2301.7,1.4259]
[1750545016488,5.896,2302.3,2301.7,1.4259]
[1750545016489,7.817,2302.4,2301.7,6.4259]
[1750545016696,35.959,2302.4,2301.9,3.2078]
[1750545016887,7.817,2302.7,2302.3,3.2078]
[1750545017589,35.958,2302.8,2302.3,3.2078]
[1750545017888,35.958,2302.8,2302.5,0.06847599]
[1750545018391,37.3633,2302.8,2302.5,0.06847599]
[1750545019794,37.3633,2302.8,2302.3,3.2078]
[1750545020197,37.3633,2302.8,2302.4,1.407]
[1750545020598,37.3633,2302.8,2302.3,3.2078]
[1750545020897,37.3633,2302.8,2302.0,4.6148]
[1750545021886,43.2593,2302.8,2302.0,4.6148]
[1750545022093,3.2078,2302.6,2302.0,1.407]
[1750545022292,29.5829,2302.5,2302.0,4.6148]
[1750545022701,0.9327,2302.4,2302.0,4.6148]
[1750545022890,0.9327,2302.4,2301.8,0.9556]
[1750545022891,8.7497,2302.4,2301.8,0.9556]
[1750545023095,10.1956,2302.4,2301.8,0.9556]
[1750545023293,10.1956,2302.4,2301.8,2.3335]
[1750545023790,8.7497,2302.4,2301.8,2.3335]
[1750545024787,8.7497,2302.4,2301.7,3.27627599]
[1750545025093,3.2078,2302.2,2301.7,0.06847599]
[1750545025293,29.4887,2302.1,2301.7,0.06847599]
[1750545025491,7.817,2302.0,2301.7,0.06847599]
[1750545026205,4.0956,2301.9,2301.7,0.06847599]
[1750545026499,5.4523,2301.9,2301.7,0.06847599]
[1750545027091,0.8878,2301.9,2301.7,0.06847599]
[1750545027291,35.948,2302.1,2301.7,0.06847599]
[1750545027492,36.8358,2302.1,2301.7,0.06847599]
[1750545027696,36.8358,2302.1,2301.8,1.3932]
[1750545030499,36.8358,2302.1,2301.8,4.601]
[1750545031006,0.8878,2302.1,2301.8,4.601]
[1750545031208,3.2078,2302.2,2301.9,7.7460352]
[1750545031498,3.2078,2302.2,2302.0,1.3595]
[1750545031704,3.2078,2302.5,2302.0,1.3595]
[1750545031909,3.2078,2302.5,2302.2,7.7460352]
[1750545032099,3.2078,2302.5,2302.3,1.3595]
[1750545033097,36.8691,2302.6,2302.3,1.3595]
[1750545033098,8.7421,2302.6,2302.3,4.5673]
[1750545033297,0.9241,2302.6,2302.3,4.5673]
[1750545035607,28.123,2302.7,2302.3,4.5673]
[1750545036304,28.123,2302.7,2302.3,3.2078]
[1750545037508,5.896,2302.6,2302.3,3.2078]
[1750545037703,5.896,2302.6,2302.4,1.4709]
[1750545038710,5.896,2302.6,2302.5,0.9437]
[1750545038904,5.896,2302.8,2302.5,8.6897352]
[1750545039211,0.9163,2303.1,2302.7,3.2078]
[1750545039212,6.8123,2303.1,2302.7,3.2078]
[1750545039413,6.8123,2303.1,2302.8,1.3703]
[1750545040409,6.8123,2303.1,2302.5,0.9437]
[1750545040410,10.0201,2303.1,2302.5,0.9437]
[1750545040708,8.1512,2303.1,2302.5,0.9437]
[1750545041105,8.1512,2303.1,2302.7,3.2078]
[1750545041412,6.8123,2303.1,2302.7,3.2078]
[1750545041910,11.359,2303.1,2302.7,3.2078]
[1750545042106,8.1512,2303.1,2302.7,3.2078]
[1750545042606,9.1038,2303.1,2302.7,3.2078]
[1750545042914,9.1038,2303.1,2302.8,1.3444]
[1750545042915,5.896,2303.1,2302.8,1.3444]
[1750545043411,5.896,2303.1,2302.9,7.7460352]
[1750545043614,3.2078,2303.3,2302.9,8.6318352]
[1750545043816,3.2078,2303.3,2303.0,1.3444]
[1750545044112,5.896,2303.5,2303.0,4.88151238]
[1750545045814,5.896,2303.5,2303.1,0.9362]
[1750545046112,5.896,2303.5,2303.2,1.3704]
[1750545047609,4.1008,2303.7,2303.2,1.3704]
[1750545049210,0.893,2303.7,2303.3,3.2078]
[1750545049402,0.893,2303.7,2303.4,1.3802]
[1750545050112,0.893,2303.7,2303.3,3.2078]
[1750545050417,39.0368352,2303.6,2303.2,0.06847599]
[1750545050614,9.2508,2303.5,2303.2,0.06847599]
[1750545050811,3.2078,2303.3,2303.2,0.06847599]
[1750545051207,9.2508,2303.5,2303.2,0.06847599]
[1750545052920,3.2078,2303.3,2303.2,0.06847599]
[1750545053123,9.2508,2303.5,2303.2,0.06847599]
[1750545053816,3.2078,2303.6,2303.2,0.06847599]
[1750545054014,39.0708,2303.6,2303.2,0.06847599]
[1750545054322,3.2078,2303.6,2303.3,1.3766]
[1750545055011,0.893,2303.7,2303.4,3.2078]
[1750545057223,1.4062,2303.6,2303.4,3.2078]
[1750545057915,35.853,2303.5,2303.2,0.06847599]
[1750545058418,1.4687,2303.4,2303.2,0.06847599]
[1750545058617,0.8882,2303.3,2303.2,0.06847599]
[1750545060216,6.7842,2303.3,2303.2,0.06847599]
[1750545061024,5.896,2303.3,2303.2,0.06847599]
[1750545062123,0.893,2303.7,2303.2,6.44537599]
[1750545062426,0.893,2303.7,2303.3,5.538]
[1750545062626,0.893,2303.7,2303.3,5.97782606]
[1750545062926,0.893,2303.7,2303.3,5.538]
[1750545063124,0.893,2303.7,2303.3,4.5847]
[1750545064329,0.893,2303.7,2303.3,3.2078]
[1750545064626,3.2078,2303.4,2303.2,0.06847599]
[1750545064825,3.2078,2303.4,2302.8,3.64215807]
[1750545064826,1.4258,2303.3,2302.8,3.64215807]
[1750545065030,3.2078,2303.1,2302.8,0.43435807]
[1750545065231,7.3218,2303.0,2302.8,0.43435807]
[1750545065436,7.3218,2303.0,2302.5,3.2078]
[1750545065924,5.896,2303.0,2302.8,3.2078]
[1750545066830,5.896,2303.0,2302.6,1.4505]
[1750545067216,5.896,2303.0,2302.8,3.2078]
[1750545067622,37.6701,2303.2,2302.9,1.3858]
[1750545067822,1.8341,2303.2,2302.9,1.3858]
[1750545068031,9.826,2303.4,2303.1,3.2078]
[1750545068330,35.835,2303.8,2303.2,9.1318352]
[1750545068529,35.835,2303.8,2303.2,9.20031119]
[1750545068730,2.4169,2303.9,2303.4,3.2078]
[1750545068919,38.2509,2303.9,2303.4,3.2078]
[1750545072430,3.2078,2303.8,2303.4,3.2078]
[1750545072630,4.6583,2303.8,2303.4,3.2078]
[1750545072926,5.896,2303.7,2303.4,3.2078]
[1750545073324,7.3577,2303.7,2303.2,2.37397599]
[1750545074124,3.2078,2303.5,2303.2,0.06847599]
[1750545074425,35.822,2303.4,2303.2,0.06847599]
[1750545074630,35.822,2303.4,2302.9,1.3842]
[1750545074830,36.7367,2303.4,2302.9,1.3842]
[1750545075133,0.9146,2303.3,2302.9,1.3842]
[1750545075630,0.9146,2303.3,2302.8,3.27627599]
[1750545076137,0.9146,2303.3,2302.9,1.3289]
[1750545076433,2.2489,2303.3,2302.8,3.27627599]
[1750545076631,2.2489,2303.3,2302.8,3.2078]
[1750545076825,3.2078,2302.9,2302.5,3.2078]
[1750545077136,0.9147,2302.8,2302.5,3.2078]
[1750545077326,0.9147,2302.8,2302.5,4.5367]
[1750545079533,3.2078,2303.6,2302.6,7.7460352]
[1750545079731,3.2078,2303.4,2302.8,0.06847599]
[1750545080032,3.2078,2303.4,2302.8,3.27627599]
[1750545080241,35.783,2303.3,2302.8,3.27627599]
[1750545080438,35.783,2303.3,2302.9,1.4121]
[1750545081931,37.121,2303.3,2302.9,1.4121]
[1750545082240,3.2078,2303.1,2302.8,0.06847599]
[1750545082436,33.921,2303.0,2302.8,0.06847599]
[1750545082637,0.9664,2302.9,2302.8,0.06847599]
[1750545083940,34.8697,2303.0,2302.8,0.06847599]
[1750545084136,35.8361,2303.0,2302.8,0.06847599]
[1750545086941,35.8361,2303.0,2302.2,3.2078]
[1750545086942,21.3970352,2302.9,2302.2,3.2078]
[1750545087244,3.2078,2302.7,2302.2,3.2078]
[1750545087541,3.2078,2302.4,2301.5,3.2078]
[1750545087742,43.5292,2302.3,2301.8,3.2078]
[1750545087942,43.5292,2302.3,2301.9,1.3901]
[1750545088538,7.7582,2302.3,2301.9,2.3131]
[1750545088741,28.016,2302.2,2301.9,2.3131]
[1750545088941,28.016,2302.2,2301.9,1.3901]
[1750545089244,28.016,2302.2,2301.6,0.923]
[1750545089443,28.016,2302.2,2301.6,2.3131]
[1750545090247,3.2078,2301.7,2300.8,10.9638]
[1750545090543,3.2078,2301.7,2301.1,3.2078]
[1750545090544,28.014,2301.6,2301.1,3.2078]
[1750545090741,28.014,2301.6,2301.2,1.3901]
[1750545091448,28.014,2301.6,2301.3,2.1726]
[1750545092643,28.014,2301.6,2300.8,3.2078]
[1750545092644,3.2078,2301.4,2300.8,3.2078]
[1750545092945,92.5095352,2301.6,2300.2,0.9091]
[1750545092946,7.7460352,2301.0,2300.2,0.9091]
[1750545093144,7.7460352,2300.7,2300.1,3.27627599]
[1750545093346,3.2078,2300.3,2300.1,5.99e-06]
[1750545093544,36.6266,2300.2,2300.1,5.99e-06]
[1750545093944,41.6266,2300.2,2299.8,0.6675]
[1750545094240,11.8231752,2299.9,2299.8,0.7793]
[1750545094446,39.8381752,2299.9,2299.8,0.7793]
[1750545095141,32.09214,2299.9,2299.8,0.1118]
[1750545095343,43.9688352,2299.9,2298.7,1.4012]
[1750545095538,10.9538352,2299.3,2298.7,1.4012]
[1750545095735,35.77,2299.2,2298.5,3.2078]
[1750545095940,3.2078,2299.0,2298.1,4.609]
[1750545096139,28.013,2298.9,2298.4,3.2078]
[1750545096345,7.757,2298.8,2298.5,1.4012]
[1750545098851,35.781,2299.2,2298.7,3.2078]
[1750545099054,35.781,2299.2,2298.8,1.3312]
[1750545099452,35.781,2299.2,2298.4,3.2078]
[1750545099453,3.2078,2299.0,2298.4,3.2078]
[1750545099751,28.021,2298.9,2298.2,1.3312]
[1750545099948,7.763,2298.8,2298.2,1.3312]
[1750545101548,7.763,2298.8,2297.7,0.9246]
[1750545101549,3.2078,2298.3,2297.7,0.9246]
[1750545101848,7.763,2298.8,2298.0,3.2078]
[1750545102053,35.79,2298.8,2298.1,4.6574]
[1750545102245,50.065,2298.9,2298.4,3.2078]
[1750545102552,3.2078,2299.0,2298.5,1.4496]
[1750545102854,50.079,2299.7,2298.9,3.2078]
[1750545103054,35.798,2299.8,2299.5,3.2078]
[1750545103351,35.798,2299.8,2299.6,1.3468]
[1750545104553,36.344,2299.8,2299.6,1.3468]
[1750545106570,0.546,2299.8,2299.6,1.3468]
[1750545108070,0.546,2299.8,2299.3,0.9469]
[1750545108367,0.546,2299.8,2299.4,1.4625]
[1750545108664,0.546,2299.8,2299.5,3.2078]
[1750545108873,0.546,2299.8,2299.6,1.4625]
[1750545109266,0.546,2299.8,2299.6,6.4625]
[1750545109472,0.546,2299.8,2299.6,14.1995]
[1750545109659,4.1405,2300.7,2299.6,14.62831862]
[1750545109860,51.0059,2300.8,2299.6,14.62831862]
[1750545109861,3.2078,2301.1,2300.3,3.2078]
[1750545110065,35.763,2301.0,2300.4,1.3889]
[1750545110265,3.2078,2300.8,2300.4,1.3889]
[1750545113276,3.2078,2300.8,2300.2,0.9356]
[1750545113569,3.2078,2300.8,2300.3,1.4268]
[1750545113961,38.9628,2300.8,2300.3,1.4268]
[1750545114175,10.9438,2300.8,2300.3,1.4268]
[1750545114375,3.2078,2300.8,2300.3,1.4268]
[1750545115376,3.2078,2300.8,2300.3,9.1628]
[1750545115573,4.1405,2301.3,2300.3,17.6363415]
[1750545115778,12.3999,2301.6,2301.0,3.2078]
[1750545116078,3.2078,2301.6,2301.1,1.3712]
[1750545117691,4.6639,2301.6,2301.1,1.3712]
[1750545117970,4.6639,2301.6,2301.0,3.2078]
[1750545118167,35.742,2301.5,2301.2,3.2078]
[1750545118366,35.742,2301.5,2301.0,1.4574]
[1750545119075,35.742,2301.5,2301.2,3.2078]
[1750545119076,7.735,2301.5,2301.2,3.2078]
[1750545119279,3.2078,2301.6,2301.3,1.4574]
[1750545119465,10.9428,2301.6,2301.3,1.4574]
[1750545119674,1.30530231,2301.5,2300.4,3.2078]
[1750545119967,3.2078,2301.1,2300.4,3.2078]
[1750545120172,10.9428,2301.1,2300.5,1.4574]
[1750545120476,10.9428,2301.1,2300.7,3.2078]
[1750545121176,3.2078,2300.8,2300.4,3.2078]
[1750545121373,3.2078,2300.5,2300.0,3.2078]
[1750545121572,10.9418,2300.5,2300.0,3.2078]
[1750545121774,0.8903,2300.8,2300.3,3.2078]
[1750545121971,8.6243,2300.8,2300.4,1.3697]
[1750545122272,5.896,2300.8,2300.4,1.3697]
[1750545122478,5.896,2300.8,2300.6,3.2078]
[1750545122666,16.8378,2300.9,2300.4,1.3697]
[1750545123071,1.4611,2300.8,2300.0,3.2078]
[1750545123269,5.896,2300.7,2300.1,1.3697]
[1750545123485,32.6669,2300.6,2300.0,3.2078]
[1750545123681,5.6069,2300.6,2300.0,3.2078]
[1750545123977,35.732,2300.5,2300.0,3.2078]
[1750545124178,5.896,2300.7,2300.3,3.2078]
[1750545124377,5.896,2300.7,2300.1,1.3697]
[1750545124573,3.2078,2300.6,2300.0,3.2078]
[1750545124778,4.6256,2300.6,2300.0,4.5389]
[1750545125177,27.997,2300.5,2300.0,3.2078]
[1750545125475,3.2078,2300.3,2299.6,3.2078]
[1750545125675,8.2449,2300.2,2299.6,4.5389]
[1750545125980,27.996,2300.1,2299.6,3.2078]
[1750545126180,7.735,2300.0,2299.6,3.2078]
[1750545126769,14.5621,2300.2,2299.7,1.3311]
[1750545126969,6.8271,2300.2,2299.7,1.3311]
[1750545127578,6.8271,2300.2,2299.9,3.2078]
[1750545127782,8.673,2300.4,2299.9,3.2078]
[1750545128081,8.673,2300.4,2300.0,1.4276]
[1750545128473,0.938,2300.4,2300.0,1.4276]
[1750545129272,4.0992,2300.7,2300.1,3.2078]
[1750545129479,7.735,2300.6,2300.2,1.4276]
[1750545130072,7.735,2300.6,2300.1,3.2078]
[1750545130373,1.3401,2300.5,2299.9,0.9029]
[1750545130680,3.2078,2300.4,2299.7,3.2078]
[1750545130880,1.4596,2300.3,2299.7,4.5876]
[1750545131377,2.4095,2300.3,2299.7,4.5876]
[1750545132679,2.4095,2300.3,2299.8,3.2078]
[1750545132872,2.4095,2300.3,2299.8,4.5876]
[1750545133477,2.4095,2300.3,2299.5,11.8557]
[1750545133780,2.4095,2300.3,2299.8,3.2078]
[1750545134383,5.896,2300.2,2299.8,3.2078]
[1750545134883,13.631,2300.2,2299.9,3.2078]
[1750545135079,13.631,2300.2,2299.6,4.6305]
[1750545137480,13.631,2300.2,2299.9,3.2078]
[1750545138380,13.631,2300.2,2299.6,4.6305]
[1750545139585,13.631,2300.2,2299.9,3.2078]
[1750545139885,13.631,2300.2,2299.9,3.6324]
[1750545140384,13.631,2300.2,2299.9,0.4246]
[1750545140385,3.2078,2300.1,2299.9,0.4246]
[1750545140577,3.2078,2300.1,2300.0,1.4519]
[1750545140777,0.8717,2300.9,2300.0,13.8687137]
[1750545140982,3.2078,2300.8,2300.1,8.6519]
[1750545141270,4.6612,2300.8,2300.2,1.4484]
[1750545141487,7.714,2300.7,2300.2,1.4484]
[1750545141678,3.2078,2300.5,2300.0,1.4519]
[1750545141885,2.77070792,2300.4,2300.0,1.4519]
[1750545142185,3.2078,2300.2,2300.0,1.4519]
[1750545142585,4.6612,2300.2,2300.0,1.4519]
[1750545144582,7.714,2300.2,2300.0,1.4519]
[1750545145087,12.293,2300.2,2300.0,1.4519]
[1750545145680,5.896,2300.1,2300.0,1.4519]
[1750545145878,7.2881,2300.1,2300.0,1.4519]
[1750545147184,15.0021,2300.1,2300.0,1.4519]
[1750545149185,7.7606137,2300.0,2299.1,61.942]
[1750545149384,3.2078,2299.7,2299.1,11.881]
[1750545149581,16.8178,2299.7,2299.1,11.881]
[1750545150088,44.7918,2299.7,2299.1,3.2078]
[1750545150288,0.9106,2299.6,2299.2,1.3929]
[1750545153190,8.6256,2299.6,2299.2,1.3929]
[1750545154691,8.6256,2299.6,2299.2,1.46137599]
[1750545155286,0.9106,2299.6,2299.2,1.46137599]
[1750545155587,5.896,2299.5,2299.2,0.06847599]
[1750545157087,3.2078,2299.4,2299.2,0.06847599]
[1750545157282,41.58,2299.3,2298.8,3.2078]
[1750545157488,3.2078,2299.8,2299.2,3.2078]
[1750545157685,3.2078,2299.8,2299.3,2.283]
[1750545158193,3.2078,2299.8,2299.4,0.9485]
[1750545158393,3.2078,2299.8,2299.5,1.4628]
[1750545158788,35.679,2300.0,2299.5,4.6706]
[1750545159495,1.8029,2300.1,2299.8,3.2078]
[1750545159682,3.2078,2300.4,2299.9,1.4628]
[1750545159888,3.2078,2300.4,2300.0,7.7606137]
[1750545160090,3.2078,2300.4,2300.1,1.4628]
[1750545160894,35.677,2300.6,2300.2,3.2078]
[1750545161097,7.715,2300.6,2300.3,1.3791]
[1750545162693,7.715,2301.1,2300.5,3.2078]
[1750545162900,35.671,2301.1,2300.6,3.2287]
[1750545163591,3.2078,2301.2,2300.6,3.2287]
[1750545164297,4.6331,2301.2,2300.6,3.2287]
[1750545164894,3.2078,2300.8,2299.8,7.715]
[1750545165095,3.2078,2300.5,2299.7,6.5126]
[1750545165296,3.2078,2300.2,2299.7,2.3522]
[1750545165593,35.665,2300.1,2299.7,2.3522]
[1750545165798,35.665,2300.1,2299.8,1.3976]
[1750545165991,35.665,2300.1,2299.7,3.2078]
[1750545166195,36.6165,2300.1,2299.4,1.3976]
[1750545167497,3.2078,2299.9,2299.3,0.9526]
[1750545167697,3.2078,2299.9,2299.2,7.78347599]
[1750545167999,38.8398,2299.9,2299.2,7.78347599]
[1750545168193,39.7108,2299.9,2299.3,1.4497]
[1750545168792,1.4317,2299.8,2299.3,1.4497]
[1750545169199,1.4317,2299.8,2299.2,0.06847599]
[1750545169397,3.2078,2299.3,2299.2,0.06847599]
[1750545169709,3.2078,2299.6,2299.2,0.06847599]
[1750545169898,3.2078,2299.6,2299.0,1.4497]
[1750545170202,3.2078,2299.6,2299.0,4.6575]
[1750545170399,3.2078,2299.3,2298.7,3.2078]
[1750545170900,43.3906137,2299.2,2298.5,1.4125]
[1750545171098,37.9625,2299.2,2298.5,1.4125]
[1750545171493,0.8832,2299.2,2298.8,3.2078]
[1750545171900,0.8832,2299.2,2298.9,1.4125]
[1750545173506,36.5887,2299.4,2298.9,1.4125]
[1750545173706,3.2078,2299.3,2298.6,7.689]
[1750545173908,3.2078,2299.0,2298.6,1.3998]
[1750545174506,10.8968,2299.0,2298.6,1.3998]
[1750545175703,5.896,2298.9,2298.6,1.3998]
[1750545175909,5.896,2298.9,2298.5,3.2078]
[1750545176102,7.3149,2298.9,2298.5,3.2078]
[1750545176801,41.526,2298.9,2298.5,3.2078]
[1750545177303,3.2078,2298.7,2298.2,4.5662]
[1750545177609,35.629,2298.6,2298.2,4.5662]
[1750545177906,35.629,2298.6,2297.9,4.9948]
[1750545178108,0.8982,2298.5,2298.0,1.3584]
[1750545178296,2.3171,2298.5,2298.0,1.3584]
[1750545179103,0.9066,2298.4,2298.0,1.3584]
[1750545181809,5.896,2298.9,2298.2,7.7606137]
[1750545182004,5.0541,2299.3,2298.6,3.2078]
[1750545182309,3.2078,2299.0,2298.5,3.2078]
[1750545182514,3.3152,2299.3,2298.8,3.2078]
[1750545182712,3.2078,2299.4,2298.8,3.2078]
[1750545182912,3.2078,2299.4,2299.0,7.7606137]
[1750545183106,3.2078,2299.4,2299.1,1.3729]
[1750545184103,7.691,2299.9,2299.3,3.2078]
[1750545184411,7.691,2299.9,2299.7,3.2078]
[1750545185714,9.1599,2300.2,2299.7,3.2078]
[1750545186019,16.9205137,2300.2,2299.4,4.5807]
[1750545187812,9.1599,2300.2,2299.4,4.5807]
[1750545188006,35.62,2300.2,2299.7,3.2078]
[1750545188212,1.378,2300.1,2299.4,4.5807]
[1750545188817,3.2078,2300.0,2299.2,7.69]
[1750545189017,3.2078,2300.0,2299.3,1.3518]
[1750545189320,1.378,2299.9,2299.3,1.3518]
[1750545189721,7.69,2299.9,2299.4,3.2078]
[1750545190025,3.2078,2300.0,2299.5,1.3518]